Cogmind - Beta 13 --- EXPLORER MODE // 2024.04.08 @ 01:41:07 Player: devwitch Result: Self-destructed Performance ------------- Evolutions (3) 1500 Regions Visited (6) 1200 Robots Destroyed (19) 95 Value Destroyed (501) 501 Prototype IDs (4) 80 Alien Tech Used (0) 0 Bonus (0) 0 TOTAL SCORE: 3376 Bonus ------- None Cogmind --------- Core Integrity 643/700 Matter 254/300 Energy 120/125 System Corruption 2% Temperature Warm (148) Movement Flying (34) Location -7/Lower Caves Parts ------- > --- POWER (2) -------- Light Ion Engine > --- PROPULSION (4) --- Improved Flight Unit Cesium-ion Thruster > --- UTILITY (6) ------ Improved Sensor Array Improved Signal Interpreter Advanced Terrain Scan Processor ECM Suite > --- WEAPON (2) ------- Pulse Rifle Light Assault Rifle > --- INVENTORY (5) ---- Flight Unit Flight Unit VTOL Module Sensor Array Peak State ------------ > --- POWER ------------ Light Ion Engine Light Ion Engine > --- PROPULSION ------- Improved Flight Unit Improved Flight Unit Cesium-ion Thruster Cesium-ion Thruster > --- UTILITY ---------- Advanced Weight Redist. System Improved Sensor Array Improved Signal Interpreter Advanced Terrain Scan Processor ECM Suite Light Armor Plating > --- WEAPON ----------- Pulse Rifle Light Assault Rifle > --- INVENTORY -------- Flight Unit Flight Unit VTOL Module Sensor Array [Rating: 33] Favorites ----------- Power Ion Engine Engine Ion Engine Propulsion Light Treads Treads Light Treads Flight Unit Improved Flight Unit Utility Targeting Computer Device Sensor Array Storage Medium Storage Unit Processor Targeting Computer Protection Propulsion Shielding Weapon Assault Rifle Energy Gun EM Pulse Gun Ballistic Gun Assault Rifle Build | -11 -10 -9 -9 -8 -7 -7 ------- Run | Yrd Mat Mat Min Mat Fac Low Slots Evolved 7 | . 1 2 . 2 2 . Power 1 | . . . . 1 . . Propulsion 2 | . . 2 . . . . Utility 4 | . 1 . . 1 2 . Weapon . | . . . . . . . Parts Attached 32 | 6 2 4 4 10 6 . Power 5 | 1 . 1 1 2 . . Engine 5 | 1 . 1 1 2 . . Core . | . . . . . . . Reactor . | . . . . . . . Propulsion 11 | 2 . 2 3 2 2 . Treads 4 | 2 . 2 . . . . Leg . | . . . . . . . Wheel . | . . . . . . . Hover . | . . . . . . . Flight 7 | . . . 3 2 2 . Utility 12 | 2 1 1 . 4 4 . Device 5 | . . 1 . 1 3 . Storage 1 | 1 . . . . . . Processor 4 | 1 . . . 2 1 . Hackware . | . . . . . . . Protection 2 | . 1 . . 1 . . Artifact . | . . . . . . . Weapon 4 | 1 1 . . 2 . . Energy Gun 2 | . 1 . . 1 . . Energy Cannon . | . . . . . . . Ballistic Gun 2 | 1 . . . 1 . . Ballistic Cannon . | . . . . . . . Launcher . | . . . . . . . Special Weapon . | . . . . . . . Impact Weapon . | . . . . . . . Slashing Weapon . | . . . . . . . Piercing Weapon . | . . . . . . . Special Melee Weapon . | . . . . . . . Unidentified Prototypes 1 | . . . 1 . . . Parts Lost 14 | . . . 8 1 . 5 Power 3 | . . . 1 1 . 1 Propulsion 5 | . . . 3 . . 2 Utility 4 | . . . 2 . . 2 Weapon 2 | . . . 2 . . . Highest Loss Streak 8 | . . . 8 1 . 5 To Critical Strikes 1 | . . . 1 . . . Average Slot Usage (%) 90 | . 90 99 73 65 93 90 Engine 11 | . 12 10 10 15 14 12 Treads 23 | . 25 39 27 . . . Flight 7 | . . . 2 22 28 25 Device 6 | . . 7 8 2 16 20 Storage 7 | . 12 10 9 . . . Processor 10 | . 12 10 6 10 12 14 Protection 6 | . 12 2 . 7 7 3 Energy Gun 6 | . 3 10 3 . 7 7 Ballistic Gun 9 | . 12 10 6 5 7 7 Naked Turns . | . . . . . . . Heaviest Build 22 | 17 20 22 22 13 16 16 Greatest Support 86 | 40 40 86 86 27 27 20 Greatest Overweight (x) 1 | . . . 1 . . . Average Overweight (x) . | . . . . . . . Largest Inventory Capacity 10 | 10 10 10 10 5 5 5 Average Capacity 8 | 9 10 10 9 5 5 5 Most Carried 10 | 6 10 10 10 5 5 4 Average Carried 7 | 3 7 9 9 3 3 4 Final Capacity 10 | 10 10 10 5 5 5 5 Final Carried 10 | 6 10 10 5 5 4 4 Class Distribution -------------------- 80% | Hacker-Mutant 19% | Hacker-Sprinter Dominant Class ---------------- Hacker-Mutant | -10/Materials Hacker-Mutant | -9/Materials Hacker-Mutant | -9/Mines Hacker-Mutant | -8/Materials Hacker-Sprinter | -7/Factory Hacker-Sprinter | -7/Lower Caves Resources | -11 -10 -9 -9 -8 -7 -7 ----------- Run | Yrd Mat Mat Min Mat Fac Low Matter Collected 578 | 242 46 88 81 31 52 38 Remotely . | . . . . . . . Salvage Created 497 | . 86 266 . 100 12 33 Parts 38 | . 8 17 . 10 . 3 Haulers Intercepted . | . . . . . . . Recyclers Shooed . | . . . . . . . Parts Field Recycled . | . . . . . . . Retrieved Matter . | . . . . . . . Parts Self-Destructed . | . . . . . . . Prevented . | . . . . . . . Kills | -11 -10 -9 -9 -8 -7 -7 ------- Run | Yrd Mat Mat Min Mat Fac Low Combat Hostiles Destroyed 12 | . 2 5 1 2 . 2 Guns 12 | . 2 5 1 2 . 2 Classes Destroyed 5 | . 2 2 1 . . . Watcher 7 | . 3 1 . 2 1 . Swarmer 6 | . 2 . . 2 . 2 Grunt 3 | . . 3 . . . . Sentry 2 | . . 2 . . . . Demolisher 1 | . . . 1 . . . Best Kill Streak 4 | . 4 1 1 2 1 2 Combat Bots Only 2 | . 2 1 1 2 . 2 Max Kills in Single Turn 1 | . 1 1 1 1 1 1 Gunslinging . | . . . . . . . Exploded . | . . . . . . . Melee . | . . . . . . . Uniques/NPCs Destroyed . | . . . . . . . Combat | -11 -10 -9 -9 -8 -7 -7 -------- Run | Yrd Mat Mat Min Mat Fac Low Hostile Shots Fired 176 | . 2 42 63 15 . 54 Missed 53 | . . 10 14 6 . 23 Damage Taken 1479 | . 11 277 815 70 . 306 Core 274 | . 5 44 168 . . 57 Absorbed by Shields . | . . . . . . . Redirected to Shielding 15 | . 1 14 . . . . Ignored by Resistances 882 | . 8 175 476 42 . 181 Core Remaining (%) 86 | 100 98 . 47 100 . . Volleys Fired 81 | . 6 26 12 19 6 12 Largest 2 | . 1 2 2 1 2 2 Hottest 83 | . 20 60 60 20 83 83 Shots Fired 110 | . 6 35 14 19 12 24 Gun 110 | . 6 35 14 19 12 24 Cannon . | . . . . . . . Launcher . | . . . . . . . Special . | . . . . . . . Kinetic 81 | . 6 26 12 19 6 12 Thermal 18 | . . . . . 6 12 Explosive . | . . . . . . . Electromagnetic 11 | . . 9 2 . . . Robot Hit Streak 30 | . 6 14 3 22 23 30 Robot Miss Streak 2 | . . 1 1 . 2 . Penetration Max . | . . . . . . . Secondary Targets . | . . . . . . . Shots Hit Robots 98 | . 6 31 10 19 9 23 Core Hits 40 | . 5 12 4 11 2 6 Critical Kills . | . . . . . . . Critical Parts Destroyed . | . . . . . . . Critical Strikes . | . . . . . . . Melee Attacks . | . . . . . . . Impact . | . . . . . . . Slashing . | . . . . . . . Piercing . | . . . . . . . Sneak Attacks . | . . . . . . . Combat Hostiles . | . . . . . . . Follow-up Attacks . | . . . . . . . Damage Inflicted 1386 | . 79 488 213 156 122 328 Guns 1214 | . 79 391 138 156 122 328 Cannons . | . . . . . . . Explosions 172 | . . 97 75 . . . Melee . | . . . . . . . Ramming . | . . . . . . . Kinetic 772 | . 79 289 116 156 37 95 Thermal 490 | . . 97 75 . 85 233 Explosive . | . . . . . . . Electromagnetic 124 | . . 102 22 . . . Impact . | . . . . . . . Slashing . | . . . . . . . Piercing . | . . . . . . . Highest Corruption 2 | . . . 1 . . 2 Average Corruption 1 | . . . 1 . . 1 Corruption Purged . | . . . . . . . Corruption Blocked . | . . . . . . . Overload Shots . | . . . . . . . Overflow Damage . | . . . . . . . Projectiles . | . . . . . . . Explosions . | . . . . . . . Melee . | . . . . . . . Knockbacks . | . . . . . . . Impact . | . . . . . . . Kinetic . | . . . . . . . Secondary . | . . . . . . . Self-Inflicted Damage 52 | . . 33 19 . . . Shots 2 | . . 1 1 . . . Rammed . | . . . . . . . Targets Rammed . | . . . . . . . Kicked . | . . . . . . . Crushed . | . . . . . . . Highest Temperature 175 | . . 21 10 17 134 175 Average Temperature 46 | . . 9 6 4 54 82 Received Heat Transfer 297 | . . 201 60 36 . . Siege Activations . | . . . . . . . Robots Corrupted . | . . . . . . . Combat Hostiles . | . . . . . . . Parts Fried . | . . . . . . . Impact Corruptions . | . . . . . . . Robots Melted . | . . . . . . . Combat Hostiles . | . . . . . . . Parts Melted . | . . . . . . . Heat Transferred 829 | . . 100 100 . 185 444 Parts Sabotaged . | . . . . . . . Parts Stolen . | . . . . . . . Parts Stripped . | . . . . . . . Power Chain Reactions 3 | . . 2 1 . . . Alert | -11 -10 -9 -9 -8 -7 -7 ------- Run | Yrd Mat Mat Min Mat Fac Low Peak Influence 183 | . 111 183 41 145 55 . Initial 20 | . . 1 20 . . . Average 41 | . 15 73 17 39 41 . Maximum Alert Level . | . . . . . . . Low Security (%) 100 | 100 100 100 100 100 100 . Level 1 . | . . . . . . . Level 2 . | . . . . . . . Level 3 . | . . . . . . . Level 4 . | . . . . . . . Level 5 . | . . . . . . . High Security . | . . . . . . . Max Security . | . . . . . . . Squads Dispatched 3 | . . 2 . 1 . . Investigation 1 | . . . . 1 . . Extermination . | . . . . . . . Reinforcement 2 | . . 2 . . . . Assault . | . . . . . . . Garrison . | . . . . . . . Intercept . | . . . . . . . Searches Triggered . | . . . . . . . Construction Impeded . | . . . . . . . Haulers Reinforced . | . . . . . . . Active Scanning Responses . | . . . . . . . Cargo Convoy Interrupts . | . . . . . . . Stealth | -11 -10 -9 -9 -8 -7 -7 --------- Run | Yrd Mat Mat Min Mat Fac Low Distress Signals 2 | . 1 1 . . . . Communications Jammed . | . . . . . . . Distress Signals . | . . . . . . . Times Spotted 55 | . 5 14 14 11 2 9 Peak Tracking Total 12 | . 3 4 12 5 1 11 Tactical Retreats 6 | . . 1 . 3 . 2 Traps | -11 -10 -9 -9 -8 -7 -7 ------- Run | Yrd Mat Mat Min Mat Fac Low Traps Triggered . | . . . . . . . Indirectly . | . . . . . . . Trap Hack Attempts . | . . . . . . . Triggered . | . . . . . . . Disarmed 6 | . 6 . . . . . Reprogrammed . | . . . . . . . Reused . | . . . . . . . Traps Extracted . | . . . . . . . Installed . | . . . . . . . Triggered 1 | . . . . . . 1 Machines | -11 -10 -9 -9 -8 -7 -7 ---------- Run | Yrd Mat Mat Min Mat Fac Low Machines Disabled 1 | . . 1 . . . . Max in Single Turn 1 | . . 1 . . . . Machines Repaired . | . . . . . . . Machines Dismantled . | . . . . . . . Machines Sabotaged . | . . . . . . . Overloaded Fab Kills . | . . . . . . . Hacking | -11 -10 -9 -9 -8 -7 -7 --------- Run | Yrd Mat Mat Min Mat Fac Low Machines Accessed 14 | . 8 1 . 3 2 . Terminals 13 | . 8 1 . 3 1 . Fabricators 1 | . . . . . 1 . Repair Stations . | . . . . . . . Recycling Units . | . . . . . . . Scanalyzers . | . . . . . . . Garrison Access . | . . . . . . . Total Hacks 40 | . 26 4 . 7 3 . Successful 24 | . 18 2 . 2 2 . Failed 16 | . 8 2 . 5 1 . Catastrophic 2 | . . . . 1 1 . Database Lockouts . | . . . . . . . Manual 27 | . 19 4 . 3 1 . Terminals 38 | . 26 4 . 7 1 . Fabricators 2 | . . . . . 2 . Repair Stations . | . . . . . . . Recycling Units . | . . . . . . . Scanalyzers . | . . . . . . . Garrison Access . | . . . . . . . Terminal Hacks 19 | . 15 2 . 2 . . Part Schematic 2 | . 2 . . . . . Robot Analysis 1 | . 1 . . . . . Prototype ID Bank 2 | . 2 . . . . . Terminal Index 2 | . 1 1 . . . . Scanalyzer Index 2 | . 1 1 . . . . Unreport Threat 3 | . 1 . . 2 . . Locate Traps 1 | . 1 . . . . . Disarm Traps 1 | . 1 . . . . . Patrol Status 1 | . 1 . . . . . Transport Status 1 | . 1 . . . . . Hauler Manifests 1 | . 1 . . . . . Registered Components 1 | . 1 . . . . . Zone Layout 1 | . 1 . . . . . Fabricator Hacks 2 | . . . . . 2 . Load Schematic 1 | . . . . . 1 . Build 1 | . . . . . 1 . Repair Station Hacks . | . . . . . . . Recycling Unit Hacks . | . . . . . . . Scanalyzer . | . . . . . . . Garrison Access Hacks . | . . . . . . . Unauthorized Hacks 3 | . 3 . . . . . Terminals 3 | . 3 . . . . . Assimilate 3 | . 3 . . . . . Fabricators . | . . . . . . . Repair Stations . | . . . . . . . Recycling Units . | . . . . . . . Scanalyzers . | . . . . . . . Garrison Access . | . . . . . . . Data Cores Recovered . | . . . . . . . Used . | . . . . . . . Hacking Detections 14 | . 8 1 . 3 2 . Full Trace Events 1 | . . . . 1 . . Feedback Events . | . . . . . . . Feedback Blocked . | . . . . . . . Robot Schematics Acquired . | . . . . . . . Robots Built . | . . . . . . . Authchips . | . . . . . . . Time . | . . . . . . . Total Robot Build Rating . | . . . . . . . Part Schematics Acquired 2 | . 2 . . . . . Parts Built 1 | . . . . . 1 . Authchips . | . . . . . . . Time 17 | . . . . . 17 . Total Part Build Rating 1 | . . . . . 1 . Parts Repaired . | . . . . . . . Time . | . . . . . . . Parts Recycled . | . . . . . . . Recycled Matter . | . . . . . . . Retrieved Matter . | . . . . . . . Retrieved Components . | . . . . . . . Parts Scanalyzed . | . . . . . . . Part Schematics Acquired . | . . . . . . . Parts Damaged . | . . . . . . . Bothacking | -11 -10 -9 -9 -8 -7 -7 ------------ Run | Yrd Mat Mat Min Mat Fac Low Used RIF Installer . | . . . . . . . Robots Hacked . | . . . . . . . Non-combat . | . . . . . . . Combat . | . . . . . . . Robot Hacks Applied . | . . . . . . . Relay Couplers Released . | . . . . . . . Fabnet Peak Effective % . | . . . . . . . Robots Rewired . | . . . . . . . Allies Hacked . | . . . . . . . Hacks Repelled . | . . . . . . . Allies | -11 -10 -9 -9 -8 -7 -7 -------- Run | Yrd Mat Mat Min Mat Fac Low Total Allies . | . . . . . . . Largest Group . | . . . . . . . Highest-Rated Group . | . . . . . . . Highest-Rated Ally . | . . . . . . . Total Orders . | . . . . . . . Ally Attacks . | . . . . . . . Total Damage . | . . . . . . . Kills . | . . . . . . . Allies Corrupted . | . . . . . . . Allies Melted . | . . . . . . . Intel | -11 -10 -9 -9 -8 -7 -7 ------- Run | Yrd Mat Mat Min Mat Fac Low Robot Analysis Total 1 | . 1 . . . . . Derelict Logs Recovered . | . . . . . . . Drone Launches . | . . . . . . . Drone Recoveries . | . . . . . . . Exploration | -11 -10 -9 -9 -8 -7 -7 ------------- Run | Yrd Mat Mat Min Mat Fac Low Turns Passed 1859 | 128 499 649 107 186 203 87 Spaces Moved 1755 | 75 298 348 56 386 402 190 Core 5 | 5 . . . . . . Treads 760 | 70 298 348 44 . . . Legs . | . . . . . . . Wheels . | . . . . . . . Hover . | . . . . . . . Flight 990 | . . . 12 386 402 190 Fastest Speed 28 | 50 160 160 37 31 28 28 Average Speed 87 | 152 160 160 134 34 29 28 Slowest Speed 160 | 160 160 160 160 37 31 28 Overloaded Moves . | . . . . . . . Propulsion Burnouts . | . . . . . . . Robots Hopped 3 | . . . . 2 1 . Cave-ins Triggered . | . . . . . . . Exploration Rate (%) 27 | 6 50 25 26 38 12 32 Regions Visited 6 Branch Regions 2 Pre-discovered Areas . | . . . . . . . Known Exits Taken 6 | 1 1 1 1 1 1 . Unknown Exits Taken . | . . . . . . . Scrap Searched 1 | . . . . . . 1 Spaces Dug . | . . . . . . . Terrain Destroyed 9 | . . 8 1 . . . Melee . | . . . . . . . Projectile . | . . . . . . . AOE 9 | . . 8 1 . . . Terrain Rammed . | . . . . . . . Walls Destroyed . | . . . . . . . Machines Disabled . | . . . . . . . Actions | -11 -10 -9 -9 -8 -7 -7 --------- Run | Yrd Mat Mat Min Mat Fac Low Total 1974 | 86 315 406 73 419 473 202 Wait 74 | . . 22 . . 52 . Move 1743 | 74 297 347 55 381 399 190 Hop 3 | . . . . 2 1 . Pick Up 25 | 6 8 2 . 4 5 . Fast Attach 16 | 6 . 3 . 7 . . Attach 11 | . 2 . 4 3 2 . Detach 2 | . . 1 . 1 . . Swap 5 | . . 1 . . 4 . Drop 14 | . 2 4 2 2 4 . Fire 81 | . 6 26 12 19 6 12 Melee . | . . . . . . . Ram . | . . . . . . . Kick . | . . . . . . . Crush . | . . . . . . . Escape Stasis . | . . . . . . . Rewire . | . . . . . . . Trap . | . . . . . . . Miscellaneous . | . . . . . . . Route ------- -11/Scrapyard -10/Materials (discovered 3 exits: *Mat x2 / *Min) -9/Materials -9/Mines -8/Materials -7/Factory -7/Lower Caves History --------- Turn | Location | Event 15 | -11/Scrapyard | Identified exit to Materials 15 | -11/Scrapyard | Discovered exit to Materials (range 15) 129 | -11/Scrapyard | Entered Materials 129 | -10/Materials | Evolved 1 slot: Utility x1 300 | -10/Materials | Identified exit to Materials 300 | -10/Materials | Discovered exit to Materials (range 16) 302 | -10/Materials | Build established: Hacker-Mutant 544 | -10/Materials | Discovered exit to Materials (range 9) 573 | -10/Materials | Identified exit to Mines 573 | -10/Materials | Discovered exit to Mines (range 14) 628 | -10/Materials | Entered another Materials area 628 | -9/Materials | Evolved 2 slots: Propulsion x2 858 | -9/Materials | Identified exit to Mines 858 | -9/Materials | Discovered exit to Mines (range 5) 1277 | -9/Materials | Entered Mines 1278 | -9/Mines | Assembled infested the area 1288 | -9/Mines | Met a Derelict bent on vengeance 1367 | -9/Mines | Identified exit to Materials 1367 | -9/Mines | Discovered exit to Materials (range 14) 1377 | -9/Mines | Core integrity fell below 50% 1384 | -9/Mines | Entered Materials 1384 | -8/Materials | Evolved 2 slots: Power x1, Utility x1 1405 | -8/Materials | Lost 8 parts (1p3n2u2w) 1552 | -8/Materials | Identified exit to Factory 1552 | -8/Materials | Discovered exit to Factory (range 16) 1570 | -8/Materials | Entered Factory 1570 | -7/Factory | Evolved 2 slots: Utility x2 1671 | -7/Factory | Fabricated Sensor Array (x1) 1771 | -7/Factory | Identified exit to Lower Caves 1771 | -7/Factory | Discovered exit to Lower Caves (range 8) 1773 | -7/Factory | Entered Lower Caves 1792 | -7/Lower Caves | Attracted the attention of an 0b10 outpost 1797 | -7/Lower Caves | Build established: Hacker-Sprinter 1860 | -7/Lower Caves | Self-destructed Last Messages --------------- 01771_ EXIT=FOUND: LOWER CAVES LOCATION=LOWER CAVES GOAL=ESCAPE 01786_ Searching scrap... 01786_ Found Hcp. Storage Unit. 01786_ Found Gauss Cannon. 01786_ Found 38 Matter. 01787_ Acquired 38 matter. 01792_ Y-64 Sentinel: "DETECTED UNIDENTIFIED DERELICT." 01796_ Y-64 Sentinel: "REQUESTING BACKUP." 01817_ Critical hit (Destroy). 01819_ Lgt. Armor Plating destroyed. 01821_ S-27 Virus destroyed. 01840_ Lgt. Ion Engine destroyed. 01846_ Imp. Flight Unit destroyed. 01849_ Destroyed Shock Rifle. 01853_ P-60 Hacker heat damages Imp. Heat Sink. 01854_ Cesium-ion Thruster destroyed. 01858_ Adv. Weight Redist. System destroyed. Map ----- +----------------------------------------------------+ | | | | | | | | | | | | | | | | | ?????????????????????????????????????????????????? | | ?????????????????????????????????????????????????? | | ?????????????????????????????????????????????????? | | ?????????????????????????????????????????????????? | | ?????????????????????????????????????????????????? | | ?????????????????????????????????????????????????? | | ?????????????????????????????????????????????????? | | ?????????????????????????????????????????????????? | | ?????????????????????????????????????????????????? | | ????????????????????#######??????????????????????? | | ????????????????????#" "" #??????????????????????? | | ????????????????????# """ #??????????????????????? | | ????????????????????? " "???????????????????????? | | ?????????????????????# #???????????????????????? | | ????????????????????## ###?????????????????????? | | ????????????????????# ##????? ??????????????? | | ????????????????????# #??? #?##?????????? | | ??????????####??##### @ #??? ## #????????? | | ???????#### ##?# l #??? ????????? | | ???????# #?# ### ###??? #???????? | | ???###?# #??# #?# p##???## ##?????? | | ??## ### #??# #?#[ #???## ##????? | | ??# #??# #?#% #?### ##???? | | ??# #### #?#[ ### bY ##### | | ??### ### ## ??# ## | | ????## [%= ??# | | ?????###### * #??# | | ??????????# ## #### | | ??????????# ##?# ## | | ??????????# ### ###?# | | ????????# #?# ### | | ???????# #?## ### ## | | ??????# #??# ##?## | | ??????# #?# #???## ## | | ??????## ####?# #????## ## | | ???????####?????# ?????## ### | | ????????????????# ?????# ##?## | | ????????????????## ?????# ## #???#### | | ?????????????????#####??????## #### #?????## | | ?????????????????????????????###??# #?????## | | ?????????????????????????????????? #???????## | | ????????????????????????????????? #?????????# | +----------------------------------------------------+ Best States ------------- Heat Dissipation 34 Energy Generation 15 Energy Capacity 265 Matter Stores 300 Matter Capacity 300 Sight Range 16 Robot Scan Range 15 Terrain Scan Density 210 ECM Strength 1 Additional Mass Support 9 Armor Coverage 150 Resistance: KI 35 Resistance: TH 35 Resistance: EX 35 Resistance: EM 35 Resistance: I 35 Resistance: S 35 Resistance: P 35 Propulsion Shielding 33 Evasion (%) 64 Targeting Accuracy 5 Recoil Reduction 4 Offensive Hacking 20 Item Schematics ----------------- Sensor Array | -10/Materials | Hacked Signal Interpreter | -10/Materials | Hacked Robot Schematics ------------------ None Fabricated ------------ Sensor Array | x1 | -7/Factory Alien Tech Used ----------------- None Achievements -------------- Just What I Needed Challenges ------------ None Game ------ Seed PiercingPointySlayer Manual? 0 Play Time 00:33:58 Cumulative 17.5 hours Start 2024.04.07 @ 22:22:22 End 2024.04.08 @ 01:41:07 Sessions 3 Manual Loads 0 Difficulty Explorer Special Mode None Game No. 33 Rogue 0 Adventurer 0 Explorer 33 Win Type - Total 0 Types 0/0/0/0/0/0/0/0/0 Lore% 24 Gallery% 20 Achievement% 20 Wizard Run 0 Options --------- Layout 1 ASCII 0 Keyboard 1 Movement Arrows Keybinds 0 Fullscreen 1 Font 24/Smallcaps Map View 50x35 Zoom Use 0% Tactical HUD 1 Map Filters NONE Filters NONE Steam 1 RUN: 1d7f3993-c560-40e7-b78d-cf5cdb9e9f3a